[Event "Titled Tuesday Blitz June 13 Early 2023"]
[White "Hartikainen, Jarmo"]
[Black "Luukkonen, Tommi"]
[WhiteFideId "503134"]
[BlackFideId "501808"]
[WhiteElo "2128"]
[BlackElo "2296"]
[Result "0-1"]
[Round "3"]
[TimeControl "180+2"]
[Date "2023.06.13"]
[WhiteClock "0:00:00"]
[BlackClock "0:01:18"]
[Board "221"]

1. e4 {[%clk 0:03:00]}  c5 {[%clk 0:02:58]} 2. c3 {[%clk 0:02:59]}  Nf6 {[%clk 0:02:55]} 3. e5 {[%clk 0:02:58]}  Nd5 {[%clk 0:02:55]} 4. d4 {[%clk 0:02:58]}  cxd4 {[%clk 0:02:55]} 5. Nf3 {[%clk 0:02:55]}  Nc6 {[%clk 0:02:54]} 6. cxd4 {[%clk 0:02:53]}  d6 {[%clk 0:02:54]} 7. Nc3 {[%clk 0:02:50]}  Nxc3 {[%clk 0:02:54]} 8. bxc3 {[%clk 0:02:49]}  g6 {[%clk 0:02:54]} 9. Bf4 {[%clk 0:02:17]}  Bg7 {[%clk 0:02:50]} 10. exd6 {[%clk 0:02:15]}  exd6 {[%clk 0:02:50]} 11. Be2 {[%clk 0:02:07]}  O-O {[%clk 0:02:49]} 12. O-O {[%clk 0:02:06]}  Re8 {[%clk 0:02:48]} 13. Re1 {[%clk 0:02:05]}  Bg4 {[%clk 0:02:44]} 14. Qa4 {[%clk 0:01:49]}  Qd7 {[%clk 0:02:41]} 15. Rab1 {[%clk 0:01:25]}  d5 {[%clk 0:01:50]} 16. Qb5 {[%clk 0:01:13]}  b6 {[%clk 0:01:44]} 17. Ne5 {[%clk 0:00:59]}  Nxe5 {[%clk 0:01:44]} 18. Bxe5 {[%clk 0:00:48]}  Be6 {[%clk 0:01:37]} 19. Qxd7 {[%clk 0:00:45]}  Bxd7 {[%clk 0:01:37]} 20. Bxg7 {[%clk 0:00:46]}  Kxg7 {[%clk 0:01:37]} 21. Bf3 {[%clk 0:00:46]}  Be6 {[%clk 0:01:36]} 22. Re5 {[%clk 0:00:45]}  Red8 {[%clk 0:01:36]} 23. Rb5 {[%clk 0:00:40]}  Rac8 {[%clk 0:01:35]} 24. Bxd5 {[%clk 0:00:37]}  Rxc3 {[%clk 0:01:34]} 25. h3 {[%clk 0:00:34]}  Bxd5 {[%clk 0:01:29]} 26. Rbxd5 {[%clk 0:00:32]}  Rxd5 {[%clk 0:01:29]} 27. Rxd5 {[%clk 0:00:32]}  Ra3 {[%clk 0:01:28]} 28. Rd8 {[%clk 0:00:28]}  Rxa2 {[%clk 0:01:28]} 29. d5 {[%clk 0:00:29]}  Kf6 {[%clk 0:01:28]} 30. Rh8 {[%clk 0:00:14]}  Rd2 {[%clk 0:01:24]} 31. Ra8 {[%clk 0:00:10]}  a5 {[%clk 0:01:21]} 32. Rb8 {[%clk 0:00:07]}  Rb2 {[%clk 0:01:20]} 33. d6 {[%clk 0:00:04]}  Ke6 {[%clk 0:01:21]} 34. Rb7 {[%clk 0:00:04]}  Kxd6 {[%clk 0:01:19]} 35. Rxf7 {[%clk 0:00:04]}  a4 {[%clk 0:01:19]} 36. Ra7 {[%clk 0:00:00]}  b5 {[%clk 0:01:18]} 0-1


[Site "https://www.chess.com"]

[Event "Titled Tuesday Blitz June 13 Early 2023"]
[White "Nikologorsky, Matfei"]
[Black "Baker, Chris W"]
[WhiteFideId "24102474"]
[BlackFideId "401676"]
[WhiteElo "2153"]
[BlackElo "2117"]
[Result "1-0"]
[Round "3"]
[TimeControl "180+2"]
[Date "2023.06.13"]
[WhiteClock "0:02:24"]
[BlackClock "0:01:59"]
[Board "222"]

1. e4 {[%clk 0:02:59]}  c6 {[%clk 0:02:59]} 2. d4 {[%clk 0:02:58]}  d5 {[%clk 0:02:59]} 3. Nc3 {[%clk 0:02:58]}  dxe4 {[%clk 0:02:59]} 4. Nxe4 {[%clk 0:02:58]}  Nf6 {[%clk 0:02:59]} 5. Nxf6+ {[%clk 0:02:58]}  exf6 {[%clk 0:02:59]} 6. c3 {[%clk 0:02:59]}  Bd6 {[%clk 0:02:57]} 7. Bd3 {[%clk 0:02:59]}  O-O {[%clk 0:02:56]} 8. Ne2 {[%clk 0:03:00]}  Re8 {[%clk 0:02:48]} 9. O-O {[%clk 0:02:58]}  Nd7 {[%clk 0:02:43]} 10. Bf4 {[%clk 0:02:56]}  Nf8 {[%clk 0:02:42]} 11. Bxd6 {[%clk 0:02:51]}  Qxd6 {[%clk 0:02:41]} 12. Qd2 {[%clk 0:02:46]}  Ng6 {[%clk 0:02:37]} 13. Rae1 {[%clk 0:02:37]}  Be6 {[%clk 0:02:33]} 14. Bb1 {[%clk 0:02:35]}  Bc4 {[%clk 0:02:31]} 15. b3 {[%clk 0:02:33]}  Bxe2 {[%clk 0:02:30]} 16. Rxe2 {[%clk 0:02:33]}  Nf4 {[%clk 0:02:17]} 17. Re3 {[%clk 0:02:25]}  Qd5 {[%clk 0:02:04]} 18. Rxe8+ {[%clk 0:02:24]}  Rxe8 {[%clk 0:01:59]} 19. Qxf4 {[%clk 0:02:24]} 1-0


[Site "https://www.chess.com"]

[Event "Titled Tuesday Blitz June 13 Early 2023"]
[White "Philippe, Guillaume"]
[Black "San Thit Lwin"]
[WhiteFideId "36048763"]
[BlackFideId "13001272"]
[WhiteElo "2387"]
[BlackElo "2232"]
[Result "0-1"]
[Round "3"]
[TimeControl "180+2"]
[Date "2023.06.13"]
[WhiteClock "0:00:06"]
[BlackClock "0:00:16"]
[Board "224"]

1. e4 {[%clk 0:02:57]}  Nf6 {[%clk 0:03:00]} 2. e5 {[%clk 0:02:55]}  Nd5 {[%clk 0:03:01]} 3. d4 {[%clk 0:02:56]}  d6 {[%clk 0:03:01]} 4. c4 {[%clk 0:02:56]}  Nb6 {[%clk 0:03:01]} 5. exd6 {[%clk 0:02:57]}  cxd6 {[%clk 0:03:02]} 6. Nc3 {[%clk 0:02:57]}  g6 {[%clk 0:03:02]} 7. Be3 {[%clk 0:02:57]}  Bg7 {[%clk 0:03:03]} 8. Rc1 {[%clk 0:02:57]}  O-O {[%clk 0:03:03]} 9. b3 {[%clk 0:02:58]}  e5 {[%clk 0:03:01]} 10. Nf3 {[%clk 0:02:52]}  Nc6 {[%clk 0:02:59]} 11. d5 {[%clk 0:02:45]}  Ne7 {[%clk 0:02:59]} 12. c5 {[%clk 0:02:40]}  dxc5 {[%clk 0:02:55]} 13. d6 {[%clk 0:02:39]}  Nf5 {[%clk 0:02:42]} 14. Bxc5 {[%clk 0:02:40]}  Nd7 {[%clk 0:02:42]} 15. Ba3 {[%clk 0:02:22]}  e4 {[%clk 0:02:42]} 16. Nd2 {[%clk 0:02:06]}  e3 {[%clk 0:02:36]} 17. Nde4 {[%clk 0:01:57]}  exf2+ {[%clk 0:02:30]} 18. Kxf2 {[%clk 0:01:56]}  Ne5 {[%clk 0:01:37]} 19. Be2 {[%clk 0:01:30]}  Qb6+ {[%clk 0:01:29]} 20. Bc5 {[%clk 0:01:28]}  Qa5 {[%clk 0:01:22]} 21. Rf1 {[%clk 0:01:22]}  b6 {[%clk 0:01:14]} 22. b4 {[%clk 0:00:32]}  Qa3 {[%clk 0:01:09]} 23. Nb5 {[%clk 0:00:33]}  Qxa2 {[%clk 0:00:58]} 24. Bd4 {[%clk 0:00:33]}  Bd7 {[%clk 0:00:44]} 25. Kg1 {[%clk 0:00:28]}  Bxb5 {[%clk 0:00:37]} 26. Bxb5 {[%clk 0:00:09]}  Nxd4 {[%clk 0:00:36]} 27. Nc3 {[%clk 0:00:09]}  Qa3 {[%clk 0:00:27]} 28. Nd5 {[%clk 0:00:08]}  Nxb5 {[%clk 0:00:21]} 29. Ne7+ {[%clk 0:00:07]}  Kh8 {[%clk 0:00:20]} 30. Qd5 {[%clk 0:00:06]}  Rad8 {[%clk 0:00:19]} 31. Qxb5 {[%clk 0:00:06]}  Qe3+ {[%clk 0:00:19]} 32. Kh1 {[%clk 0:00:06]}  Rxd6 {[%clk 0:00:19]} 33. Rce1 {[%clk 0:00:06]}  Qd4 {[%clk 0:00:17]} 34. Qa6 {[%clk 0:00:04]}  Rdd8 {[%clk 0:00:16]} 35. Qxa7 {[%clk 0:00:04]}  Nd3 {[%clk 0:00:16]} 36. Rd1 {[%clk 0:00:04]}  Nf2+ {[%clk 0:00:16]} 37. Kg1 {[%clk 0:00:04]}  Nxd1+ {[%clk 0:00:15]} 38. Kh1 {[%clk 0:00:05]}  Nf2+ {[%clk 0:00:16]} 39. Kg1 {[%clk 0:00:04]}  Nh3+ {[%clk 0:00:16]} 40. Kh1 {[%clk 0:00:05]}  Qg1+ {[%clk 0:00:16]} 41. Rxg1 {[%clk 0:00:06]}  Nf2# {[%clk 0:00:16]} 0-1


[Site "https://www.chess.com"]

[Event "Titled Tuesday Blitz June 13 Early 2023"]
[White "Rodriguez, Santiago"]
[Black "Maluco_do_Natal_00"]
[WhiteFideId "3000591"]
[WhiteElo "2249"]
[BlackElo "2079"]
[Result "1-0"]
[Round "3"]
[TimeControl "180+2"]
[Date "2023.06.13"]
[WhiteClock "0:00:47"]
[BlackClock "0:00:02"]
[Board "225"]

1. d4 {[%clk 0:03:00]}  d5 {[%clk 0:02:57]} 2. Nc3 {[%clk 0:03:00]}  Nf6 {[%clk 0:02:57]} 3. Bf4 {[%clk 0:03:00]}  e6 {[%clk 0:02:54]} 4. e3 {[%clk 0:02:59]}  a6 {[%clk 0:02:54]} 5. Nf3 {[%clk 0:02:59]}  Nbd7 {[%clk 0:02:54]} 6. Bd3 {[%clk 0:02:59]}  c5 {[%clk 0:02:54]} 7. O-O {[%clk 0:02:58]}  Be7 {[%clk 0:02:53]} 8. Re1 {[%clk 0:02:57]}  O-O {[%clk 0:02:52]} 9. a3 {[%clk 0:02:56]}  c4 {[%clk 0:02:36]} 10. Bf1 {[%clk 0:02:56]}  b5 {[%clk 0:02:36]} 11. e4 {[%clk 0:02:56]}  dxe4 {[%clk 0:02:34]} 12. Nxe4 {[%clk 0:02:56]}  Nxe4 {[%clk 0:02:33]} 13. Rxe4 {[%clk 0:02:57]}  Bb7 {[%clk 0:02:29]} 14. Re1 {[%clk 0:02:57]}  Nf6 {[%clk 0:02:27]} 15. Ne5 {[%clk 0:02:57]}  Qb6 {[%clk 0:02:02]} 16. c3 {[%clk 0:02:55]}  Rad8 {[%clk 0:01:58]} 17. Bg5 {[%clk 0:02:52]}  Qc7 {[%clk 0:01:40]} 18. h4 {[%clk 0:02:47]}  h6 {[%clk 0:01:37]} 19. Bf4 {[%clk 0:02:47]}  Bd6 {[%clk 0:01:37]} 20. Qc2 {[%clk 0:02:37]}  Nd5 {[%clk 0:01:30]} 21. Bg3 {[%clk 0:02:30]}  Rfe8 {[%clk 0:01:18]} 22. Qe2 {[%clk 0:01:48]}  f6 {[%clk 0:01:16]} 23. Nf3 {[%clk 0:01:27]}  Bxg3 {[%clk 0:01:16]} 24. fxg3 {[%clk 0:01:28]}  Qxg3 {[%clk 0:01:15]} 25. Qf2 {[%clk 0:01:29]}  Qg4 {[%clk 0:01:06]} 26. Kh2 {[%clk 0:01:20]}  Nf4 {[%clk 0:00:58]} 27. Qg3 {[%clk 0:01:15]}  Qxg3+ {[%clk 0:00:34]} 28. Kxg3 {[%clk 0:01:15]}  g5 {[%clk 0:00:34]} 29. hxg5 {[%clk 0:01:13]}  hxg5 {[%clk 0:00:34]} 30. Re3 {[%clk 0:01:05]}  Bxf3 {[%clk 0:00:25]} 31. Kxf3 {[%clk 0:01:03]}  Kf7 {[%clk 0:00:20]} 32. g3 {[%clk 0:01:02]}  Nd5 {[%clk 0:00:20]} 33. Re4 {[%clk 0:01:00]}  Rh8 {[%clk 0:00:19]} 34. Rae1 {[%clk 0:00:58]}  Rde8 {[%clk 0:00:19]} 35. Bg2 {[%clk 0:00:56]}  f5 {[%clk 0:00:16]} 36. Re5 {[%clk 0:00:54]}  Kf6 {[%clk 0:00:14]} 37. Kf2 {[%clk 0:00:54]}  f4 {[%clk 0:00:11]} 38. Bxd5 {[%clk 0:00:52]}  Rh2+ {[%clk 0:00:09]} 39. Bg2 {[%clk 0:00:47]}  fxg3+ {[%clk 0:00:09]} 40. Kxg3 {[%clk 0:00:48]}  Rh4 {[%clk 0:00:07]} 41. d5 {[%clk 0:00:48]}  Reh8 {[%clk 0:00:03]} 42. Rxe6+ {[%clk 0:00:49]}  Kf7 {[%clk 0:00:02]} 43. Re7+ {[%clk 0:00:48]}  Kf6 {[%clk 0:00:03]} 44. R1e6+ {[%clk 0:00:48]}  Kf5 {[%clk 0:00:02]} 45. Be4+ {[%clk 0:00:48]}  Rxe4 {[%clk 0:00:02]} 46. Rf7# {[%clk 0:00:47]} 1-0


[Site "https://www.chess.com"]

[Event "Titled Tuesday Blitz June 13 Early 2023"]
[White "Itkis, Boris"]
[Black "FREDERICKtheMATE"]
[WhiteFideId "1209167"]
[WhiteElo "2219"]
[BlackElo "2361"]
[Result "1-0"]
[Round "3"]
[TimeControl "180+2"]
[Date "2023.06.13"]
[WhiteClock "0:00:17"]
[BlackClock "0:00:01"]
[Board "226"]

1. c4 {[%clk 0:03:00]}  c5 {[%clk 0:02:58]} 2. Nf3 {[%clk 0:03:01]}  g6 {[%clk 0:02:58]} 3. Nc3 {[%clk 0:03:02]}  Bg7 {[%clk 0:02:58]} 4. e3 {[%clk 0:03:01]}  d6 {[%clk 0:02:57]} 5. d4 {[%clk 0:03:01]}  cxd4 {[%clk 0:02:57]} 6. exd4 {[%clk 0:03:00]}  e5 {[%clk 0:02:57]} 7. dxe5 {[%clk 0:03:00]}  dxe5 {[%clk 0:02:56]} 8. Qxd8+ {[%clk 0:03:00]}  Kxd8 {[%clk 0:02:55]} 9. Bg5+ {[%clk 0:03:01]}  f6 {[%clk 0:02:55]} 10. O-O-O+ {[%clk 0:03:01]}  Ke8 {[%clk 0:02:53]} 11. Be3 {[%clk 0:03:00]}  Ne7 {[%clk 0:02:52]} 12. Nb5 {[%clk 0:03:00]}  Na6 {[%clk 0:02:50]} 13. Bxa7 {[%clk 0:02:38]}  Nc6 {[%clk 0:02:39]} 14. Bb6 {[%clk 0:02:36]}  Ke7 {[%clk 0:02:34]} 15. Nc3 {[%clk 0:02:27]}  Be6 {[%clk 0:02:29]} 16. Nd5+ {[%clk 0:02:27]}  Kf7 {[%clk 0:02:29]} 17. a3 {[%clk 0:02:24]}  e4 {[%clk 0:02:18]} 18. Nd2 {[%clk 0:02:16]}  Rac8 {[%clk 0:02:11]} 19. Kb1 {[%clk 0:02:15]}  Ne5 {[%clk 0:02:09]} 20. Nxe4 {[%clk 0:02:11]}  Bf5 {[%clk 0:02:06]} 21. Nc3 {[%clk 0:02:07]}  Nxc4 {[%clk 0:02:02]} 22. Bxc4+ {[%clk 0:01:51]}  Rxc4 {[%clk 0:02:01]} 23. f3 {[%clk 0:01:51]}  Nc5 {[%clk 0:01:43]} 24. Bxc5 {[%clk 0:01:48]}  Rxc5 {[%clk 0:01:41]} 25. Rd7+ {[%clk 0:01:34]}  Bxd7 {[%clk 0:01:39]} 26. Nxc5 {[%clk 0:01:34]}  Bc6 {[%clk 0:01:38]} 27. Rd1 {[%clk 0:01:30]}  Bf8 {[%clk 0:01:34]} 28. N5e4 {[%clk 0:01:26]}  f5 {[%clk 0:01:26]} 29. Nd6+ {[%clk 0:01:25]}  Ke6 {[%clk 0:01:24]} 30. Nc4 {[%clk 0:01:23]}  Bg7 {[%clk 0:01:12]} 31. Re1+ {[%clk 0:01:18]}  Kf6 {[%clk 0:01:10]} 32. Ne5 {[%clk 0:01:16]}  Re8 {[%clk 0:01:09]} 33. f4 {[%clk 0:01:16]}  g5 {[%clk 0:01:02]} 34. g3 {[%clk 0:01:06]}  gxf4 {[%clk 0:01:00]} 35. gxf4 {[%clk 0:01:06]}  Bh6 {[%clk 0:00:59]} 36. Rf1 {[%clk 0:01:05]}  Bg2 {[%clk 0:00:49]} 37. Rf2 {[%clk 0:01:03]}  Bxf4 {[%clk 0:00:44]} 38. Nd7+ {[%clk 0:00:59]}  Ke7 {[%clk 0:00:43]} 39. Rxf4 {[%clk 0:00:56]}  Kxd7 {[%clk 0:00:42]} 40. Rxf5 {[%clk 0:00:56]}  Re7 {[%clk 0:00:37]} 41. Rg5 {[%clk 0:00:53]}  Bf1 {[%clk 0:00:32]} 42. Kc2 {[%clk 0:00:52]}  Kc6 {[%clk 0:00:31]} 43. b4 {[%clk 0:00:51]}  b5 {[%clk 0:00:29]} 44. Rc5+ {[%clk 0:00:50]}  Kb7 {[%clk 0:00:26]} 45. Rh5 {[%clk 0:00:41]}  Ka6 {[%clk 0:00:19]} 46. Rh6+ {[%clk 0:00:41]}  Kb7 {[%clk 0:00:19]} 47. Rh5 {[%clk 0:00:37]}  Ka6 {[%clk 0:00:16]} 48. Rf5 {[%clk 0:00:37]}  Bc4 {[%clk 0:00:15]} 49. Rf6+ {[%clk 0:00:26]}  Kb7 {[%clk 0:00:14]} 50. a4 {[%clk 0:00:27]}  bxa4 {[%clk 0:00:14]} 51. Nxa4 {[%clk 0:00:28]}  Re2+ {[%clk 0:00:12]} 52. Kc3 {[%clk 0:00:28]}  Bb5 {[%clk 0:00:11]} 53. Nc5+ {[%clk 0:00:27]}  Kc8 {[%clk 0:00:10]} 54. Rh6 {[%clk 0:00:28]}  Re7 {[%clk 0:00:09]} 55. Kd4 {[%clk 0:00:27]}  Kc7 {[%clk 0:00:09]} 56. Ne4 {[%clk 0:00:21]}  Bc6 {[%clk 0:00:08]} 57. Nc3 {[%clk 0:00:20]}  Rd7+ {[%clk 0:00:07]} 58. Kc5 {[%clk 0:00:20]}  Bf3 {[%clk 0:00:06]} 59. b5 {[%clk 0:00:19]}  Bg4 {[%clk 0:00:05]} 60. b6+ {[%clk 0:00:19]}  Kb7 {[%clk 0:00:05]} 61. Nb5 {[%clk 0:00:19]}  Bf3 {[%clk 0:00:05]} 62. Nd6+ {[%clk 0:00:19]}  Ka6 {[%clk 0:00:05]} 63. Rh3 {[%clk 0:00:18]}  Rxd6 {[%clk 0:00:02]} 64. Kxd6 {[%clk 0:00:18]}  Bb7 {[%clk 0:00:01]} 65. Rb3 {[%clk 0:00:17]} 1-0


[Site "https://www.chess.com"]

[Event "Titled Tuesday Blitz June 13 Early 2023"]
[White "Slayyy_200"]
[Black "Tarasova, Viktoriya"]
[BlackFideId "4175840"]
[WhiteElo "2055"]
[BlackElo "2182"]
[Result "0-1"]
[Round "3"]
[TimeControl "180+2"]
[Date "2023.06.13"]
[WhiteClock "0:00:01"]
[BlackClock "0:00:16"]
[Board "227"]

1. e4 {[%clk 0:03:00]}  e5 {[%clk 0:02:59]} 2. Nf3 {[%clk 0:03:00]}  Nc6 {[%clk 0:02:59]} 3. Bb5 {[%clk 0:03:00]}  Nf6 {[%clk 0:02:59]} 4. O-O {[%clk 0:02:57]}  Nxe4 {[%clk 0:02:58]} 5. Re1 {[%clk 0:02:57]}  Nd6 {[%clk 0:02:58]} 6. Bxc6 {[%clk 0:02:55]}  dxc6 {[%clk 0:02:57]} 7. Nxe5 {[%clk 0:02:54]}  Be7 {[%clk 0:02:57]} 8. d4 {[%clk 0:02:53]}  O-O {[%clk 0:02:56]} 9. Bf4 {[%clk 0:02:47]}  Nf5 {[%clk 0:02:48]} 10. c3 {[%clk 0:02:42]}  Be6 {[%clk 0:02:47]} 11. Nd2 {[%clk 0:02:40]}  Nh4 {[%clk 0:02:37]} 12. Bg3 {[%clk 0:02:29]}  c5 {[%clk 0:02:15]} 13. Ne4 {[%clk 0:01:49]}  cxd4 {[%clk 0:02:13]} 14. cxd4 {[%clk 0:01:46]}  Bd5 {[%clk 0:02:08]} 15. Qg4 {[%clk 0:01:36]}  f5 {[%clk 0:02:04]} 16. Qh5 {[%clk 0:01:29]}  fxe4 {[%clk 0:01:50]} 17. Rac1 {[%clk 0:01:13]}  c6 {[%clk 0:01:49]} 18. a3 {[%clk 0:01:04]}  Nf5 {[%clk 0:01:48]} 19. Ng4 {[%clk 0:00:53]}  Nxg3 {[%clk 0:01:45]} 20. hxg3 {[%clk 0:00:54]}  Qd6 {[%clk 0:01:40]} 21. Ne3 {[%clk 0:00:43]}  Rad8 {[%clk 0:01:36]} 22. Qg4 {[%clk 0:00:39]}  Qd7 {[%clk 0:01:30]} 23. Qh5 {[%clk 0:00:37]}  Rf7 {[%clk 0:01:27]} 24. Ng4 {[%clk 0:00:37]}  Bd6 {[%clk 0:01:22]} 25. Qg5 {[%clk 0:00:33]}  Kh8 {[%clk 0:01:18]} 26. Ne3 {[%clk 0:00:24]}  Rdf8 {[%clk 0:01:18]} 27. Nxd5 {[%clk 0:00:23]}  cxd5 {[%clk 0:01:17]} 28. Qxd5 {[%clk 0:00:22]}  Rxf2 {[%clk 0:01:14]} 29. Qxe4 {[%clk 0:00:22]}  Bxg3 {[%clk 0:01:11]} 30. Qe7 {[%clk 0:00:17]}  Qxd4 {[%clk 0:01:05]} 31. Re3 {[%clk 0:00:14]}  Bh4 {[%clk 0:00:24]} 32. Qe6 {[%clk 0:00:08]}  Bg5 {[%clk 0:00:20]} 33. Rc8 {[%clk 0:00:03]}  Qxe3 {[%clk 0:00:17]} 34. Qxe3 {[%clk 0:00:02]}  Bxe3 {[%clk 0:00:16]} 35. Rc5 {[%clk 0:00:01]}  Bxc5 {[%clk 0:00:16]} 0-1


[Site "https://www.chess.com"]

[Event "Titled Tuesday Blitz June 13 Early 2023"]
[White "Lacasa Diaz, Jose Antonio"]
[Black "Alexanian, Nelli"]
[WhiteFideId "2203375"]
[BlackFideId "4170539"]
[WhiteElo "2338"]
[BlackElo "2026"]
[Result "1-0"]
[Round "3"]
[TimeControl "180+2"]
[Date "2023.06.13"]
[WhiteClock "0:00:12"]
[BlackClock "0:00:00"]
[Board "228"]

1. c4 {[%clk 0:03:00]}  e5 {[%clk 0:02:58]} 2. Nc3 {[%clk 0:02:52]}  Nf6 {[%clk 0:02:57]} 3. Nf3 {[%clk 0:02:52]}  Nc6 {[%clk 0:02:54]} 4. e3 {[%clk 0:02:52]}  e4 {[%clk 0:02:51]} 5. Ng5 {[%clk 0:02:47]}  Qe7 {[%clk 0:02:45]} 6. Qc2 {[%clk 0:02:46]}  b6 {[%clk 0:02:39]} 7. Ngxe4 {[%clk 0:02:41]}  Bb7 {[%clk 0:02:33]} 8. Nxf6+ {[%clk 0:02:37]}  Qxf6 {[%clk 0:02:33]} 9. Nd5 {[%clk 0:02:36]}  Qd6 {[%clk 0:02:23]} 10. b3 {[%clk 0:02:15]}  O-O-O {[%clk 0:02:19]} 11. Bb2 {[%clk 0:02:13]}  f5 {[%clk 0:02:09]} 12. O-O-O {[%clk 0:02:07]}  Qe6 {[%clk 0:01:52]} 13. Bd3 {[%clk 0:01:51]}  Ne7 {[%clk 0:01:16]} 14. Nxe7+ {[%clk 0:01:47]}  Qxe7 {[%clk 0:01:14]} 15. Bxf5 {[%clk 0:01:43]}  Bxg2 {[%clk 0:01:13]} 16. Rhg1 {[%clk 0:01:41]}  Bf3 {[%clk 0:01:11]} 17. Rde1 {[%clk 0:01:31]}  h5 {[%clk 0:01:07]} 18. e4 {[%clk 0:01:14]}  Rh6 {[%clk 0:01:04]} 19. h3 {[%clk 0:00:54]}  g5 {[%clk 0:01:02]} 20. Rg3 {[%clk 0:00:49]}  g4 {[%clk 0:00:59]} 21. hxg4 {[%clk 0:00:50]}  hxg4 {[%clk 0:00:57]} 22. Bxg4 {[%clk 0:00:50]}  Bxg4 {[%clk 0:00:34]} 23. Rxg4 {[%clk 0:00:51]}  Rh2 {[%clk 0:00:32]} 24. f4 {[%clk 0:00:45]}  Bh6 {[%clk 0:00:27]} 25. Bc3 {[%clk 0:00:22]}  Rf8 {[%clk 0:00:26]} 26. f5 {[%clk 0:00:20]}  Qa3+ {[%clk 0:00:24]} 27. Kb1 {[%clk 0:00:19]}  a5 {[%clk 0:00:23]} 28. Reg1 {[%clk 0:00:19]}  a4 {[%clk 0:00:21]} 29. R4g2 {[%clk 0:00:18]}  Rh3 {[%clk 0:00:19]} 30. Rg8 {[%clk 0:00:18]}  Kb7 {[%clk 0:00:18]} 31. Rxf8 {[%clk 0:00:18]}  Bxf8 {[%clk 0:00:16]} 32. bxa4 {[%clk 0:00:18]}  Bd6 {[%clk 0:00:13]} 33. e5 {[%clk 0:00:18]}  Bb4 {[%clk 0:00:12]} 34. Qe4+ {[%clk 0:00:18]}  Ka7 {[%clk 0:00:12]} 35. Rg8 {[%clk 0:00:17]}  c6 {[%clk 0:00:11]} 36. Bb2 {[%clk 0:00:17]}  Qxa4 {[%clk 0:00:08]} 37. Qc2 {[%clk 0:00:17]}  Qa5 {[%clk 0:00:07]} 38. e6 {[%clk 0:00:16]}  Rh1+ {[%clk 0:00:07]} 39. Bc1 {[%clk 0:00:17]}  Ba3 {[%clk 0:00:07]} 40. exd7 {[%clk 0:00:16]}  Qb4+ {[%clk 0:00:07]} 41. Ka1 {[%clk 0:00:14]}  Bb2+ {[%clk 0:00:00]} 42. Qxb2 {[%clk 0:00:12]} 1-0


[Site "https://www.chess.com"]

[Event "Titled Tuesday Blitz June 13 Early 2023"]
[White "Haukenfrers, Dale"]
[Black "Goswami, Vedant"]
[WhiteFideId "2603780"]
[BlackFideId "5003725"]
[WhiteElo "2017"]
[BlackElo "2011"]
[Result "1/2-1/2"]
[Round "3"]
[TimeControl "180+2"]
[Date "2023.06.13"]
[WhiteClock "0:00:59"]
[BlackClock "0:01:02"]
[Board "229"]

1. c3 {[%clk 0:02:57]}  c5 {[%clk 0:02:57]} 2. d3 {[%clk 0:02:56]}  d5 {[%clk 0:02:57]} 3. Bd2 {[%clk 0:02:54]}  e5 {[%clk 0:02:54]} 4. e4 {[%clk 0:02:54]}  Nc6 {[%clk 0:02:53]} 5. Be2 {[%clk 0:02:52]}  Nf6 {[%clk 0:02:52]} 6. Bf3 {[%clk 0:02:50]}  Be7 {[%clk 0:02:45]} 7. Na3 {[%clk 0:02:50]}  O-O {[%clk 0:02:44]} 8. Ne2 {[%clk 0:02:47]}  dxe4 {[%clk 0:02:38]} 9. dxe4 {[%clk 0:02:46]}  Qd3 {[%clk 0:02:38]} 10. Bg5 {[%clk 0:02:27]}  Rd8 {[%clk 0:02:27]} 11. Qxd3 {[%clk 0:02:26]}  Rxd3 {[%clk 0:02:24]} 12. Bxf6 {[%clk 0:02:24]}  Bxf6 {[%clk 0:02:23]} 13. Ng3 {[%clk 0:02:18]}  Be6 {[%clk 0:02:19]} 14. Ke2 {[%clk 0:02:14]}  Rad8 {[%clk 0:02:18]} 15. Rhd1 {[%clk 0:02:13]}  Rxd1 {[%clk 0:02:16]} 16. Rxd1 {[%clk 0:02:13]}  Rxd1 {[%clk 0:02:16]} 17. Kxd1 {[%clk 0:02:12]}  Bxa2 {[%clk 0:02:16]} 18. c4 {[%clk 0:01:56]}  Nd4 {[%clk 0:02:11]} 19. Kd2 {[%clk 0:01:52]}  Bg5+ {[%clk 0:02:09]} 20. Kc3 {[%clk 0:01:50]}  a6 {[%clk 0:02:06]} 21. Nf5 {[%clk 0:01:48]}  Bc1 {[%clk 0:01:57]} 22. Nxd4 {[%clk 0:01:43]}  exd4+ {[%clk 0:01:53]} 23. Kc2 {[%clk 0:01:43]}  Bf4 {[%clk 0:01:48]} 24. b3 {[%clk 0:01:43]}  d3+ {[%clk 0:01:44]} 25. Kb2 {[%clk 0:01:42]}  Bxh2 {[%clk 0:01:42]} 26. Kxa2 {[%clk 0:01:41]}  Bg1 {[%clk 0:01:43]} 27. Kb2 {[%clk 0:01:40]}  Bxf2 {[%clk 0:01:42]} 28. Kc3 {[%clk 0:01:41]}  g6 {[%clk 0:01:38]} 29. Kxd3 {[%clk 0:01:40]}  Kg7 {[%clk 0:01:35]} 30. Nc2 {[%clk 0:01:37]}  Kf6 {[%clk 0:01:30]} 31. Ne3 {[%clk 0:01:35]}  Bxe3 {[%clk 0:01:26]} 32. Kxe3 {[%clk 0:01:35]}  Ke5 {[%clk 0:01:26]} 33. g3 {[%clk 0:01:31]}  b5 {[%clk 0:01:16]} 34. cxb5 {[%clk 0:01:29]}  axb5 {[%clk 0:01:16]} 35. Be2 {[%clk 0:01:30]}  c4 {[%clk 0:01:11]} 36. bxc4 {[%clk 0:01:30]}  bxc4 {[%clk 0:01:12]} 37. Bxc4 {[%clk 0:01:30]}  f5 {[%clk 0:01:12]} 38. exf5 {[%clk 0:01:25]}  Kxf5 {[%clk 0:01:13]} 39. Kf3 {[%clk 0:01:18]}  h5 {[%clk 0:01:12]} 40. Bb5 {[%clk 0:01:13]}  g5 {[%clk 0:01:07]} 41. Be8 {[%clk 0:01:10]}  g4+ {[%clk 0:01:05]} 42. Ke3 {[%clk 0:01:08]}  Kg5 {[%clk 0:01:05]} 43. Bxh5 {[%clk 0:01:02]}  Kxh5 {[%clk 0:01:04]} 44. Kf4 {[%clk 0:01:02]}  Kh6 {[%clk 0:01:02]} 45. Kxg4 {[%clk 0:01:00]}  Kg6 {[%clk 0:01:02]} 46. Kh4 {[%clk 0:01:00]}  Kh6 {[%clk 0:01:02]} 47. g4 {[%clk 0:01:00]}  Kg6 {[%clk 0:01:02]} 48. g5 {[%clk 0:01:00]}  Kg7 {[%clk 0:01:02]} 49. Kh5 {[%clk 0:01:00]}  Kh7 {[%clk 0:01:02]} 50. g6+ {[%clk 0:01:00]}  Kg7 {[%clk 0:01:02]} 51. Kg5 {[%clk 0:01:01]}  Kg8 {[%clk 0:01:02]} 52. Kh6 {[%clk 0:01:01]}  Kh8 {[%clk 0:01:02]} 53. Kg5 {[%clk 0:01:01]}  Kg7 {[%clk 0:01:02]} 54. Kh5 {[%clk 0:01:01]}  Kg8 {[%clk 0:01:02]} 55. Kg5 {[%clk 0:01:01]}  Kg7 {[%clk 0:01:02]} 56. Kf5 {[%clk 0:01:01]}  Kg8 {[%clk 0:01:02]} 57. Ke6 {[%clk 0:01:01]}  Kg7 {[%clk 0:01:02]} 58. Kf5 {[%clk 0:01:01]}  Kg8 {[%clk 0:01:02]} 59. Kf6 {[%clk 0:01:02]}  Kf8 {[%clk 0:01:02]} 60. Ke5 {[%clk 0:00:59]}  Kg7 {[%clk 0:01:02]} 61. Kf4 {[%clk 0:00:59]}  Kxg6 {[%clk 0:01:02]} 1/2-1/2


[Site "https://www.chess.com"]